fUST/lending_fUST_20250724
["ID","MTS","AMOUNT","RATE_DAILY","PERIOD"]
[374541064,1753344653799,-2512.91,0.00023835,2]
[374541065,1753344653811,-765.88,0.00023835,2]
[374541066,1753344653820,-1312.04,0.00023835,2]
[374541067,1753344653831,-1572.12,0.00023835,2]
[374541068,1753344653840,-925.41,0.00023835,2]
[374541069,1753344653850,-591.79,0.00023835,2]
[374541070,1753344653860,-460.0,0.00023835,2]
[374541071,1753344653869,-641.67,0.00023835,2]
[374541072,1753344653879,-855.36,0.00023835,2]
[374541073,1753344653890,-839.03,0.00023835,2]
[374541074,1753344653899,-847.41,0.00023835,2]
[374541075,1753344653909,-2474.78,0.00023835,2]
[374541076,1753344653919,-799.73,0.00023835,2]
[374541077,1753344653928,-878.66,0.00023835,2]
[374541078,1753344653937,-749.9,0.00023835,2]
[374541079,1753344653947,-460.0,0.00023835,2]
[374541080,1753344653956,-609.5,0.00023848,6]
[374541081,1753344653966,-520.09,0.00023884,3]
[374541082,1753344653975,-910.38721381,0.000239,2]
[374541083,1753344653985,-603.10826919,0.00023904,2]
[374541084,1753344653995,-520.09,0.00023984,5]
[374541085,1753344654004,-300.0,0.0002399,2]
[374541086,1753344654014,-2784.6397749,0.00024,2]
[374541087,1753344654023,-160.0,0.00024,7]
[374541088,1753344654136,-150.183687,0.00024017,2]
[374541089,1753344654146,-508.35189117,0.00024027,30]
[374541090,1753344654155,-500.0,0.00024029,2]
[374541091,1753344654165,-380.43574362,0.00024038,10]
[374541092,1753344654175,-520.09,0.00024084,4]
[374541093,1753344654184,-8291.67,0.000241,7]
[374541094,1753344654194,-1135.84,0.00024109,2]
[374541095,1753344654204,-2512.91,0.00024109,2]
[374541096,1753344654214,-765.88,0.00024109,2]
[374541097,1753344654223,-1312.04,0.00024109,2]
[374541098,1753344654233,-1572.12,0.00024109,2]
[374541099,1753344654242,-925.41,0.00024109,2]
[374541100,1753344654251,-591.79,0.00024109,2]
[374541101,1753344654260,-460.0,0.00024109,2]
[374541102,1753344654270,-641.67,0.00024109,2]
[374541103,1753344654279,-855.36,0.00024109,2]
[374541104,1753344654288,-839.03,0.00024109,2]
[374541105,1753344654297,-847.41,0.00024109,2]
[374541106,1753344654308,-2474.78,0.00024109,2]
[374541107,1753344654317,-799.73,0.00024109,2]
[374541108,1753344654326,-878.66,0.00024109,2]
[374541109,1753344654336,-749.9,0.00024109,2]
[374541110,1753344654345,-460.0,0.00024109,2]
[374541111,1753344654354,-500.0,0.0002416,2]
[374541112,1753344654364,-520.09,0.00024184,6]
[374541113,1753344654373,-499.7,0.00024195,2]
[374541114,1753344654383,-609.5,0.00024199,6]
[374541115,1753344654392,-1302.2,0.00024199,2]
[374541116,1753344654402,-151.0,0.000242,10]
[374541117,1753344654411,-32199.3,0.000242,2]
[374541118,1753344654420,-500.0,0.00024201,2]
[374541119,1753344654430,-500.0,0.00024217,2]
[374541120,1753344654440,-380.43574362,0.00024245,10]
[374541121,1753344654449,-1086.70693008,0.0002425,7]
[374541122,1753344654459,-534.95714267,0.00024283,2]
[374541123,1753344654469,-520.15952562,0.00024284,7]
[374541124,1753344654478,-500.0,0.00024352,2]
[374541125,1753344654488,-153.0,0.00024356,2]
[374541126,1753344654497,-500.0,0.00024368,2]
[374541127,1753344654507,-1135.84,0.00024383,2]
[374541128,1753344654516,-2512.91,0.00024383,2]
[374541129,1753344654526,-765.88,0.00024383,2]
[374541130,1753344654535,-1312.04,0.00024383,2]
[374541131,1753344654545,-1572.12,0.00024383,2]
[374541132,1753344654555,-925.41,0.00024383,2]
[374541133,1753344654564,-591.79,0.00024383,2]
[374541134,1753344654574,-460.0,0.00024383,2]
[374541135,1753344654583,-641.67,0.00024383,2]
[374541136,1753344654593,-855.36,0.00024383,2]
[374541137,1753344654602,-839.03,0.00024383,2]
[374541138,1753344654611,-847.41,0.00024383,2]
[374541139,1753344654620,-2474.78,0.00024383,2]
[374541140,1753344654631,-799.73,0.00024383,2]
[374541141,1753344654640,-878.66,0.00024383,2]
[374541142,1753344654649,-749.9,0.00024383,2]
[374541143,1753344654659,-460.0,0.00024383,2]
[374541144,1753344654668,-5000.0,0.00024392,3]
[374541145,1753344654678,-2200.0,0.00024396,2]
[374541146,1753344654687,-1879.03,0.000244,7]
[374541147,1753344654696,-362.931082,0.00024401,8]
[374541148,1753344654706,-380.43574362,0.00024452,11]
[374541149,1753344654715,-151.0,0.000245,9]
[374541150,1753344654729,-150.0,0.000245,5]
[374541151,1753344654738,-500.0,0.00024529,2]
[374541152,1753344654747,-609.5,0.00024549,7]
[374541153,1753344654758,-500.0,0.00024566,2]
[374541154,1753344654767,-200.129568,0.0002463,2]
[374541155,1753344654777,-159.8957685,0.0002463,2]
[374541156,1753344654787,-577.1515091,0.0002463,2]
[374541157,1753344654798,-153.0,0.0002463,2]
[374541158,1753344654809,-150.183687,0.0002464,7]
[374541159,1753344654819,-5000.0,0.00024652,30]
[374541160,1753344654829,-5000.0,0.00024652,30]
[374541161,1753344654839,-1135.84,0.00024657,2]
[374541162,1753344654848,-2512.91,0.00024657,2]
[374541163,1753344654858,-765.88,0.00024657,2]
[374541164,1753344654867,-1312.04,0.00024657,2]
[374541165,1753344654876,-1572.12,0.00024657,2]
[374541166,1753344654886,-925.41,0.00024657,2]
[374541167,1753344654896,-591.79,0.00024657,2]
[374541168,1753344654905,-460.0,0.00024657,2]
[374541169,1753344654915,-641.67,0.00024657,2]
[374541170,1753344654925,-855.36,0.00024657,2]
[374541171,1753344654935,-839.03,0.00024657,2]
[374541172,1753344654944,-847.41,0.00024657,2]
[374541173,1753344654954,-2474.78,0.00024657,2]
[374541174,1753344654964,-799.73,0.00024657,2]
[374541175,1753344654974,-878.66,0.00024657,2]
[374541176,1753344654983,-749.9,0.00024657,2]
[374541177,1753344654993,-177.46719147,0.00024657,2]
[374541178,1753344655002,-151.0,0.00024658,2]
[374541179,1753344655012,-151.0,0.00024658,2]
[374541180,1753344655021,-202.58711799,0.00024658,2]
[374541181,1753344655030,-151.52309395,0.00024658,2]
[374541182,1753344655040,-248.67278207,0.00024658,2]
[374541183,1753344655049,-151.0,0.00024658,2]
[374541184,1753344655058,-151.0,0.00024658,2]
[374541185,1753344655067,-220.17848307,0.00024658,2]
[374541186,1753344655076,-151.0,0.00024658,2]
[374541187,1753344655085,-732.0,0.00024658,2]
[374541188,1753344655095,-151.0,0.00024658,2]
[374541189,1753344655104,-634.0,0.00024658,2]
[374541190,1753344655114,-198.53213712,0.00024658,2]
[374541191,1753344655123,-589.0,0.00024658,2]
[374541192,1753344655132,-151.0,0.00024658,2]
[374541193,1753344655142,-151.0,0.00024658,2]
[374541194,1753344655151,-151.0,0.00024658,2]
[374541195,1753344655161,-380.43574362,0.00024659,11]
[374541196,1753344655170,-823.0,0.00024696,2]
[374541197,1753344655180,-1412.18,0.000247,7]
[374541198,1753344655189,-800.0,0.00024743,2]
[374541199,1753344655198,-800.0,0.00024762,2]
[374541200,1753344655207,-1302.2,0.00024775,2]
[374541201,1753344655216,-1023.4,0.000248,2]
[374541202,1753344655225,-2000.0,0.000248,2]
[374541203,1753344655235,-1147.97045047,0.000248,2]
[374541204,1753344655244,-150.0,0.000248,2]
[374541205,1753344655253,-892.0,0.000248,2]
[374541206,1753344655263,-94719.4336328,0.000248,2]
[374541207,1753344655272,-548.28386372,0.000248,2]
[374541208,1753344655281,-3420.22471769,0.000248,2]
[374541209,1753344655290,-150.183687,0.00024852,30]
[374541210,1753344655299,-1147.97045039,0.00024859,2]
[374541211,1753344655310,-380.43574362,0.00024866,12]
[374541212,1753344655319,-474.32336944,0.00024873,2]
[374541213,1753344655328,-2000.62367073,0.00024881,2]
[374541214,1753344655337,-150.183687,0.00024884,10]
[374541215,1753344655347,-327.0,0.00024888,2]
[374541216,1753344655357,-1302.2,0.00024889,2]
[374541217,1753344655367,-150.183687,0.0002489,15]
[374541218,1753344655376,-150.183687,0.0002489,15]
[374541219,1753344655386,-4804.34,0.0002489,10]
[374541220,1753344655395,-4003.61,0.0002489,10]
[374541221,1753344655404,-3336.35,0.0002489,10]
[374541222,1753344655414,-1302.2,0.00024899,2]
[374541223,1753344655424,-1302.2,0.00024899,2]
[374541224,1753344655433,-1302.2,0.00024899,2]
[374541225,1753344655443,-1302.2,0.00024899,2]
[374541226,1753344655452,-1302.2,0.00024899,2]
[374541227,1753344655462,-4922.28760482,0.000249,2]
[374541228,1753344655471,-151.0,0.000249,7]
[374541229,1753344655482,-151.0,0.000249,7]
[374541230,1753344655491,-151.0,0.000249,7]
[374541231,1753344655501,-151.0,0.000249,7]
[374541232,1753344655511,-151.0,0.000249,7]
[374541233,1753344655520,-532.991995,0.000249,7]
[374541234,1753344655529,-532.991995,0.000249,7]
[374541235,1753344655539,-226.679224,0.000249,7]
[374541236,1753344655548,-226.679224,0.000249,7]
[374541237,1753344655559,-150.183687,0.000249,2]
[374541238,1753344655567,-609.5,0.000249,7]
[374541239,1753344655576,-151.0,0.000249,2]
[374541240,1753344655586,-151.0,0.000249,7]
[374541241,1753344655596,-85341.19310934,0.000249,2]
[374541242,1753344655654,-460.0,0.00019178,2]
[374541243,1753344655664,-460.0,0.00022191,2]
[374541244,1753344655674,-460.0,0.00022465,2]
[374541245,1753344655683,-460.0,0.00022739,2]
[374541246,1753344655694,-460.0,0.00022739,2]
[374541247,1753344655704,-140.98375839,0.00023013,2]
[374541248,1753344655719,-319.01624161,0.00023013,2]
[374541249,1753344655731,-460.0,0.00023287,2]
[374541250,1753344655741,-302.90266762,0.00024899,2]
[374541251,1753344655753,-999.49733238,0.00024899,2]
[374541252,1753344655764,-927.71212899,0.000249,2]
[374541253,1753344655776,-1829.3,0.000249,2]
[374541254,1753344655787,-1338.97169526,0.000249,2]
[374541255,1753344655804,-460.0,0.00019452,2]
[374541256,1753344655814,-10040.68091571,0.000249,2]
[374541257,1753344655942,-174.02728654,0.00019178,2]
[374541258,1753344655952,-460.0,0.00019178,2]
[374541259,1753344655962,-529.07,0.00021095,2]
[374541260,1753344655971,-460.0,0.00023013,2]
[374541261,1753344655981,-460.0,0.00023287,2]
[374541262,1753344655991,-460.0,0.00023561,2]
[374541263,1753344656002,-460.0,0.00023561,2]
[374541264,1753344656011,-460.0,0.00023835,2]
[374541265,1753344656021,-460.0,0.00023835,2]
[374541266,1753344656038,-460.0,0.00024109,2]
[374541267,1753344656050,-460.0,0.00024109,2]
[374541268,1753344656060,-460.0,0.00024383,2]
[374541269,1753344656070,-460.0,0.00024383,2]
[374541270,1753344656080,-609.52072891,0.00024657,2]
[374541271,1753344656089,-555.39928041,0.00024657,2]
[374541272,1753344656099,-18993.29950414,0.000249,2]
[374541273,1753344656111,-2806.74974376,0.000249,2]
[374541274,1753344656126,-21010.45821048,0.000249,2]
[374541275,1753344656138,-4107.37667425,0.000249,2]
[374541276,1753344656150,-368.65206835,0.000249,2]
[374541299,1753345175189,-300.0,0.00019074,2]
[374541300,1753345175216,-383.37274373,0.00019075,2]
[374541301,1753345175242,-644.24801236,0.00019075,2]
[374541302,1753345175268,-500.0,0.00019075,2]
[374541303,1753345175294,-500.0,0.00019075,2]
[374541304,1753345175320,-500.0,0.00019075,2]
[374541305,1753345175346,-187.22377811,0.00019075,2]
[374541306,1753345175373,-500.0,0.00019075,2]
[374541307,1753345175399,-500.0,0.00019075,2]
[374541308,1753345175424,-500.0,0.00019075,2]
[374541309,1753345175454,-500.0,0.00019075,2]
[374541310,1753345175480,-500.0,0.00019075,2]
[374541311,1753345175505,-500.0,0.00019075,2]
[374541312,1753345175532,-500.0,0.00019075,2]
[374541313,1753345175558,-500.0,0.00019075,2]
[374541314,1753345175584,-500.0,0.00019075,2]
[374541315,1753345175610,-500.0,0.00019075,2]
[374541316,1753345175636,-500.0,0.00019075,2]
[374541317,1753345175662,-500.0,0.00019075,2]
[374541318,1753345175686,-641.21818376,0.00019075,2]
[374541319,1753345175712,-309.90463084,0.00019075,2]
[374541320,1753345175736,-34.0326512,0.00019078,2]
[374541321,1753345182079,-124.83433112,0.00019078,2]
[374541322,1753345182105,-9875.16566888,0.00019078,2]
[374541323,1753345198679,-10000.0,0.00019078,2]
[374541324,1753345221006,-300.0,0.00019077,2]
[374541325,1753345221032,-9700.0,0.00019078,2]
[374541326,1753345253320,-500.0,0.00019077,2]
[374541327,1753345253347,-243.02486423,0.00019077,2]
[374541328,1753345253374,-9256.97513577,0.00019078,2]
[374541330,1753345294805,-6900.0,0.00019078,2]
[374541334,1753345529609,158.977657,0.00013699,2]
[374541335,1753345536149,-29.61522306,0.00019078,2]
[374541336,1753345536171,-776.08,0.00019168,3]
[374541337,1753345536191,-160.0,0.00019175,2]
[374541338,1753345536212,-300.0,0.00019177,2]
[374541339,1753345536234,-297.53684318,0.00019177,2]
[374541340,1753345554627,150.0,0.00018497,2]
[374541342,1753345643082,-300.0,0.00019077,2]
[374541343,1753345643105,-215.03947182,0.00019077,2]
[374541344,1753345643129,-202.46315682,0.00019077,2]
[374541345,1753345643153,-552.6017848,0.00019077,2]
[374541346,1753345643176,-2949.34694119,0.00019078,2]
[374541347,1753345645101,-596.50739797,0.00019078,2]
[374541348,1753345651221,-804.42690338,0.00019078,2]
[374541349,1753345654117,-169.48136937,0.00019078,2]
[374541350,1753345673126,606.9248092,0.000189,2]
[374541376,1753345831967,-300.0,0.00019077,2]
[374541377,1753345831977,-480.0,0.00019077,2]
[374541378,1753345831986,-500.0,0.00019077,2]
[374541379,1753345831997,-28747.07727692,0.00019078,2]
[374541380,1753345832008,-230.70333385,0.00019173,2]
[374541381,1753345832022,-500.0,0.00019173,2]
[374541382,1753345832032,-160.28276962,0.00019173,2]
[374541383,1753345832048,-500.37893867,0.00019173,2]
[374541384,1753345832058,-327.6892535,0.00019173,2]
[374541385,1753345832068,-501.2987492,0.00019173,2]
[374541386,1753345832082,-501.1504341,0.00019173,2]
[374541387,1753345832091,-500.46340243,0.00019173,2]
[374541388,1753345832100,-500.0,0.00019173,2]
[374541390,1753345832110,-503.18157826,0.00019173,2]
[374541391,1753345832119,-500.0,0.00019173,2]
[374541392,1753345832129,-500.50101421,0.00019173,2]
[374541393,1753345832139,-460.0,0.00019178,2]
[374541394,1753345832148,-460.0,0.00019178,2]
[374541396,1753345832158,-460.0,0.00019178,2]
[374541397,1753345832167,-460.0,0.00019178,2]
[374541399,1753345832179,-460.0,0.00019178,2]
[374541400,1753345832189,-460.0,0.00019178,2]
[374541401,1753345832199,-460.0,0.00019178,2]
[374541402,1753345832208,-460.0,0.00019178,2]
[374541403,1753345832218,-402.73332683,0.00019178,2]
[374541405,1753345832227,-460.0,0.00019178,2]
[374541407,1753345832236,-460.0,0.00019178,2]
[374541408,1753345832246,-460.0,0.00019178,2]
[374541409,1753345832255,-460.97763512,0.00019178,2]
[374541411,1753345832268,-460.0,0.00019178,2]
[374541413,1753345832277,-460.0,0.00019178,2]
[374541415,1753345832287,-460.0,0.00019178,2]
[374541417,1753345832296,-509.81638835,0.00019178,2]
[374541419,1753345832306,-460.0,0.00019178,2]
[374541421,1753345832315,-497.28701315,0.00019178,2]
[374541423,1753345832325,-460.0,0.00019178,2]
[374541425,1753345832335,-303.77438201,0.00019178,2]
[374541427,1753345832345,-462.63813508,0.00019178,2]
[374541429,1753345832354,-460.0,0.00019178,2]
[374541431,1753345832363,-460.0,0.00019178,2]
[374541433,1753345832372,-460.0,0.00019178,2]
[374541435,1753345832381,-460.0,0.00019178,2]
[374541437,1753345832391,-460.0,0.00019178,2]
[374541439,1753345832400,-460.0,0.00019178,2]
[374541441,1753345832410,-460.0,0.00019178,2]
[374541443,1753345832420,-460.0,0.00019178,2]
[374541445,1753345832429,-460.0,0.00019178,2]
[374541447,1753345832439,-460.0,0.00019178,2]
[374541449,1753345832448,-460.0,0.00019178,2]
[374541451,1753345832458,-460.0,0.00019178,2]
[374541453,1753345832468,-460.0,0.00019178,2]
[374541455,1753345832477,-585.48404139,0.00019178,2]
[374541457,1753345832486,-460.0,0.00019178,2]
[374541459,1753345832496,-460.0,0.00019178,2]
[374541461,1753345832505,-460.0,0.00019178,2]
[374541463,1753345832514,-460.51233733,0.00019178,2]
[374541465,1753345832524,-460.0,0.00019178,2]
[374541467,1753345832534,-460.0,0.00019178,2]
[374541469,1753345832544,-152.69860198,0.00019178,2]
[374541471,1753345832555,-460.0,0.00019178,2]
[374541473,1753345832566,-460.0,0.00019178,2]
[374541475,1753345832575,-460.44108074,0.00019178,2]
[374541477,1753345832586,-261.88627075,0.00019178,2]
[374541478,1753345832596,-460.0,0.00019178,2]
[374541479,1753345832606,-460.0,0.00019178,2]
[374541480,1753345832615,-378.11048123,0.00019178,2]
[374541481,1753345832623,-460.0,0.00019178,2]
[374541483,1753345832633,-460.0,0.00019178,2]
[374541484,1753345832643,-460.0,0.00019178,2]
[374541486,1753345832652,-460.0,0.00019178,2]
[374541488,1753345832662,-460.0,0.00019178,2]
[374541489,1753345832671,-460.0,0.00019178,2]
[374541490,1753345832681,-460.0,0.00019178,2]
[374541491,1753345832691,-494.15987481,0.00019178,2]
[374541492,1753345832700,-460.0,0.00019178,2]
[374541494,1753345832710,-460.0,0.00019178,2]
[374541495,1753345832719,-461.19875926,0.00019178,2]
[374541496,1753345832729,-606.64381236,0.00019178,2]
[374541497,1753345832739,-460.0,0.00019178,2]
[374541499,1753345832748,-460.0,0.00019178,2]
[374541500,1753345832758,-460.0,0.00019178,2]
[374541501,1753345832767,-460.0,0.00019178,2]
[374541503,1753345832777,-460.0,0.00019178,2]
[374541505,1753345832787,-460.0,0.00019178,2]
[374541507,1753345832797,-460.0,0.00019178,2]
[374541509,1753345832806,-460.0,0.00019178,2]
[374541511,1753345832816,-460.0,0.00019178,2]
[374541513,1753345832825,-460.0,0.00019178,2]
[374541515,1753345832835,-460.0,0.00019178,2]
[374541517,1753345832844,-460.0,0.00019178,2]
[374541519,1753345832854,-460.0,0.00019178,2]
[374541521,1753345832863,-460.0,0.00019178,2]
[374541523,1753345832873,-460.0,0.00019178,2]
[374541525,1753345832882,-460.0,0.00019178,2]
[374541527,1753345832891,-460.0,0.00019178,2]
[374541529,1753345832901,-460.0,0.00019178,2]
[374541531,1753345832910,-460.0,0.00019178,2]
[374541533,1753345832920,-460.0,0.00019178,2]
[374541535,1753345832930,-460.0,0.00019178,2]
[374541537,1753345832940,-460.0,0.00019178,2]
[374541539,1753345832950,-460.0,0.00019178,2]
[374541541,1753345832959,-460.0,0.00019178,2]
[374541558,1753345833121,-460.0,0.00019178,2]
[374541560,1753345833132,-460.0,0.00019178,2]
[374541562,1753345833142,-460.0,0.00019178,2]
[374541564,1753345833153,-460.0,0.00019178,2]
[374541565,1753345833163,-542.26574411,0.00019178,2]
[374541566,1753345833174,-460.0,0.00019178,2]
[374541567,1753345833183,-460.0,0.00019178,2]
[374541568,1753345833193,-460.0,0.00019178,2]
[374541569,1753345833204,-460.0,0.00019178,2]
[374541570,1753345833214,-460.0,0.00019178,2]
[374541571,1753345833224,-460.0,0.00019178,2]
[374541572,1753345833235,-460.0,0.00019178,2]
[374541573,1753345833245,-460.0,0.00019178,2]
[374541574,1753345833255,-460.0,0.00019178,2]
[374541575,1753345833266,-381.6262244,0.00019178,2]
[374541576,1753345833276,-460.0,0.00019178,2]
[374541577,1753345833286,-460.0,0.00019178,2]
[374541579,1753345833296,-460.0,0.00019178,2]
[374541581,1753345833307,-460.0,0.00019178,2]
[374541583,1753345833317,-460.0,0.00019178,2]
[374541585,1753345833327,-460.0,0.00019178,2]
[374541587,1753345833337,-468.18102341,0.00019178,2]
[374541589,1753345833347,-460.0,0.00019178,2]
[374541590,1753345833357,-460.0,0.00019178,2]
[374541592,1753345833367,-303.85787991,0.00019178,2]
[374541595,1753345833377,-460.0,0.00019178,2]
[374541597,1753345833387,-460.0,0.00019178,2]
[374541599,1753345833396,-460.0,0.00019178,2]
[374541601,1753345833406,-460.0,0.00019178,2]
[374541603,1753345833416,-460.0,0.00019178,2]
[374541605,1753345833426,-462.02482458,0.00019178,2]
[374541607,1753345833435,-466.91962471,0.00019178,2]
[374541608,1753345833446,-460.0,0.00019178,2]
[374541610,1753345833455,-460.0,0.00019178,2]
[374541611,1753345833465,-460.0,0.00019178,2]
[374541612,1753345833475,-460.0,0.00019178,2]
[374541613,1753345833485,-460.0,0.00019178,2]
[374541614,1753345833494,-460.0,0.00019178,2]
[374541615,1753345833504,-460.0,0.00019178,2]
[374541616,1753345833514,-460.0,0.00019178,2]
[374541617,1753345833523,-460.0,0.00019178,2]
[374541618,1753345833532,-460.0,0.00019178,2]
[374541619,1753345833542,-460.0,0.00019178,2]
[374541620,1753345833551,-460.0,0.00019178,2]
[374541621,1753345833561,-460.0,0.00019178,2]
[374541622,1753345833571,-460.97292052,0.00019178,2]
[374541623,1753345833580,-460.0,0.00019178,2]
[374541624,1753345833590,-460.0,0.00019178,2]
[374541625,1753345833600,-151.0,0.00019178,2]
[374541626,1753345833609,-460.0,0.00019178,2]
[374541627,1753345833619,-460.0,0.00019178,2]
[374541628,1753345833629,-153.19288286,0.00019178,2]
[374541629,1753345833640,-151.0,0.00019178,2]
[374541630,1753345833650,-460.0,0.00019178,2]
[374541631,1753345833660,-461.14623363,0.00019178,2]
[374541632,1753345833669,-500.0,0.00019178,2]
[374541633,1753345833679,-460.0,0.00019178,2]
[374541634,1753345833689,-151.0,0.00019178,2]
[374541635,1753345833699,-152.20337923,0.00019178,2]
[374541636,1753345833709,-151.33317659,0.00019178,2]
[374541637,1753345833719,-151.0,0.00019178,2]
[374541638,1753345833728,-460.0,0.00019178,2]
[374541639,1753345833737,-500.0,0.00019178,2]
[374541640,1753345833747,-151.0,0.00019178,2]
[374541641,1753345833756,-460.0,0.00019178,2]
[374541642,1753345833766,-460.0,0.00019178,2]
[374541643,1753345833776,-151.0,0.00019178,2]
[374541644,1753345833786,-460.0,0.00019178,2]
[374541645,1753345833796,-220.17848307,0.00019178,2]
[374541646,1753345833807,-151.0,0.00019178,2]
[374541647,1753345833817,-151.0,0.00019178,2]
[374541648,1753345833826,-460.0,0.00019178,2]
[374541649,1753345833836,-460.0,0.00019178,2]
[374541650,1753345833846,-460.0,0.00019178,2]
[374541651,1753345833856,-499.13555787,0.00019178,2]
[374541652,1753345833866,-460.0,0.00019178,2]
[374541653,1753345833875,-460.0,0.00019178,2]
[374541654,1753345833885,-460.0,0.00019178,2]
[374541655,1753345833895,-460.0,0.00019178,2]
[374541656,1753345833904,-460.0,0.00019178,2]
[374541657,1753345833914,-460.0,0.00019178,2]
[374541658,1753345833923,-460.0,0.00019178,2]
[374541659,1753345833933,-460.0,0.00019178,2]
[374541660,1753345833943,-460.0,0.00019178,2]
[374541661,1753345833952,-460.0,0.00019178,2]
[374541662,1753345833962,-460.0,0.00019178,2]
[374541663,1753345833971,-460.0,0.00019178,2]
[374541664,1753345833981,-466.52202714,0.00019178,2]
[374541665,1753345833990,-460.0,0.00019178,2]
[374541666,1753345833999,-460.0,0.00019178,2]
[374541667,1753345834011,-469.66209732,0.00019178,2]
[374541668,1753345834028,-460.0,0.00019178,2]
[374541669,1753345834037,-460.66641778,0.00019178,2]
[374541670,1753345834047,-461.540603,0.00019178,2]
[374541671,1753345834057,-460.0,0.00019178,2]
[374541672,1753345834068,-460.0,0.00019178,2]
[374541673,1753345834078,-463.22346233,0.00019178,2]
[374541674,1753345834088,-460.0,0.00019178,2]
[374541675,1753345834099,-460.0,0.00019178,2]
[374541676,1753345834108,-460.0,0.00019178,2]
[374541677,1753345834118,-460.0,0.00019178,2]
[374541678,1753345834127,-460.0,0.00019178,2]
[374541679,1753345834137,-500.0,0.00019178,2]
[374541680,1753345834147,-500.0,0.00019178,2]
[374541681,1753345834156,-500.0,0.00019178,2]
[374541682,1753345834166,-500.0,0.00019178,2]
[374541683,1753345834176,-460.0,0.00019178,2]
[374541684,1753345834186,-500.0,0.00019178,2]
[374541685,1753345834195,-500.0,0.00019178,2]
[374541686,1753345834204,-460.0,0.00019178,2]
[374541687,1753345834214,-460.0,0.00019178,2]
[374541688,1753345834224,-460.0,0.00019178,2]
[374541689,1753345834234,-460.0,0.00019178,2]
[374541690,1753345834243,-460.0,0.00019178,2]
[374541691,1753345834254,-460.0,0.00019178,2]
[374541692,1753345834263,-460.0,0.00019178,2]
[374541693,1753345834273,-231.26232636,0.00019178,2]
[374541694,1753345834282,-460.0,0.00019178,2]
[374541695,1753345834291,-460.0,0.00019178,2]
[374541696,1753345834301,-460.0,0.00019178,2]
[374541697,1753345834310,-460.0,0.00019178,2]
[374541698,1753345834320,-460.0,0.00019178,2]
[374541699,1753345834330,-460.0,0.00019178,2]
[374541700,1753345834341,-460.0,0.00019178,2]
[374541701,1753345834351,-460.0,0.00019178,2]
[374541702,1753345834360,-192.67102341,0.00019178,2]
[374541703,1753345834370,-460.0,0.00019178,2]
[374541704,1753345834379,-460.0,0.00019178,2]
[374541705,1753345834388,-460.0,0.00019178,2]
[374541706,1753345834397,-460.0,0.00019178,2]
[374541707,1753345834406,-460.0,0.00019178,2]
[374541708,1753345834416,-460.0,0.00019178,2]
[374541709,1753345834425,-460.0,0.00019178,2]
[374541710,1753345834434,-460.0,0.00019178,2]
[374541711,1753345834443,-460.0,0.00019178,2]
[374541712,1753345834453,-460.0,0.00019178,2]
[374541713,1753345834462,-460.0,0.00019178,2]
[374541714,1753345834472,-460.0,0.00019178,2]